[Event "Early-Titled-Tuesday-Blitz-April-02-2024"]
[Site "Chess.com"]
[Date "2024.04.02"]
[Round "8"]
[White "Slovineanu"]
[Black "rhwr"]
[Result "1-0"]
[WhiteElo "2460"]
[BlackElo "2251"]
[TimeControl "180+1"]
[EndTime "9:28:40 PDT"]
[Termination "Slovineanu won by resignation"]

1. d4 {[%clk 0:03:00.9]} 1... c5 {[%clk 0:02:59.5]} 2. d5 {[%clk 0:03:00.7]}
2... d6 {[%clk 0:02:59.4]} 3. Nc3 {[%clk 0:03:00.9]} 3... g6 {[%clk 0:02:59.6]}
4. e4 {[%clk 0:03:01.3]} 4... Bg7 {[%clk 0:03:00.2]} 5. Bb5+ {[%clk 0:03:00.7]}
5... Bd7 {[%clk 0:03:00.2]} 6. a4 {[%clk 0:03:01.3]} 6... a6 {[%clk 0:03:00.1]}
7. Bc4 {[%clk 0:02:59.1]} 7... Nf6 {[%clk 0:03:00.1]} 8. Nf3 {[%clk 0:02:58.9]}
8... O-O {[%clk 0:03:00.7]} 9. h3 {[%clk 0:02:59]} 9... Be8 {[%clk 0:02:54.4]}
10. O-O {[%clk 0:02:58]} 10... Nbd7 {[%clk 0:02:55]} 11. Re1 {[%clk 0:02:55.8]}
11... Rb8 {[%clk 0:02:55]} 12. Bf4 {[%clk 0:02:47.7]} 12... Nh5 {[%clk
0:02:48.3]} 13. Bh2 {[%clk 0:02:47.5]} 13... Ne5 {[%clk 0:02:41.7]} 14. Be2
{[%clk 0:02:36.2]} 14... Nxf3+ {[%clk 0:02:37.2]} 15. Bxf3 {[%clk 0:02:36.4]}
15... Nf6 {[%clk 0:02:37.9]} 16. e5 {[%clk 0:02:35.7]} 16... dxe5 {[%clk
0:02:36]} 17. Bxe5 {[%clk 0:02:34.9]} 17... Rc8 {[%clk 0:02:33.7]} 18. Qe2
{[%clk 0:02:28.2]} 18... Bd7 {[%clk 0:02:24]} 19. Rad1 {[%clk 0:02:24.6]} 19...
Re8 {[%clk 0:02:23.8]} 20. g4 {[%clk 0:01:58.3]} 20... h6 {[%clk 0:02:19.9]} 21.
b3 {[%clk 0:01:34]} 21... Qa5 {[%clk 0:02:18.9]} 22. Ne4 {[%clk 0:01:26.4]}
22... Nxe4 {[%clk 0:01:56.6]} 23. Qxe4 {[%clk 0:01:26.8]} 23... Bxe5 {[%clk
0:01:42.6]} 24. Qxe5 {[%clk 0:01:26.9]} 24... c4 {[%clk 0:01:40.9]} 25. d6
{[%clk 0:01:23.3]} 25... Qxe5 {[%clk 0:01:40.3]} 26. Rxe5 {[%clk 0:01:22.9]}
26... exd6 {[%clk 0:01:38.5]} 27. Rxe8+ {[%clk 0:01:23]} 27... Bxe8 {[%clk
0:01:36.7]} 28. Bxb7 {[%clk 0:01:20.2]} 28... Rb8 {[%clk 0:01:36.3]} 29. Bxa6
{[%clk 0:01:16.3]} 29... cxb3 {[%clk 0:01:37.2]} 30. cxb3 {[%clk 0:01:16.3]}
30... Rxb3 {[%clk 0:01:37.6]} 31. Ra1 {[%clk 0:01:04.1]} 31... h5 {[%clk
0:01:35.7]} 32. a5 {[%clk 0:01:01.5]} 32... Rxh3 {[%clk 0:01:26]} 33. Bb7 {[%clk
0:00:56.7]} 33... Bb5 {[%clk 0:01:12.3]} 34. gxh5 {[%clk 0:00:55.4]} 34... Rxh5
{[%clk 0:01:09.9]} 35. a6 {[%clk 0:00:55.4]} 35... Bxa6 {[%clk 0:01:09.9]} 36.
Rxa6 {[%clk 0:00:53.4]} 36... d5 {[%clk 0:01:10.3]} 37. Rd6 {[%clk 0:00:52.8]}
37... Kg7 {[%clk 0:00:57.4]} 38. Bxd5 {[%clk 0:00:50.2]} 38... Rf5 {[%clk
0:00:54]} 39. Rd7 {[%clk 0:00:48.5]} 39... g5 {[%clk 0:00:53.3]} 40. Kf1 {[%clk
0:00:47.3]} 40... Rf4 {[%clk 0:00:50.2]} 41. Ke2 {[%clk 0:00:47.1]} 41... Kg6
{[%clk 0:00:49.5]} 42. Ke3 {[%clk 0:00:45]} 42... f6 {[%clk 0:00:49]} 43. Be4+
{[%clk 0:00:36.7]} 43... f5 {[%clk 0:00:44.5]} 44. Rd6+ {[%clk 0:00:36.6]} 44...
Kf7 {[%clk 0:00:43.4]} 45. Bd3 {[%clk 0:00:27.1]} 45... Ke7 {[%clk 0:00:42.6]}
46. Rg6 {[%clk 0:00:26.6]} 46... Rh4 {[%clk 0:00:30.9]} 47. Bxf5 {[%clk
0:00:22.7]} 1-0

[Event "Early-Titled-Tuesday-Blitz-April-02-2024"]
[Site "Chess.com"]
[Date "2024.04.02"]
[Round "8"]
[White "Al_Shima"]
[Black "dropstoneDP"]
[Result "0-1"]
[WhiteElo "2494"]
[BlackElo "2989"]
[TimeControl "180+1"]
[EndTime "9:28:42 PDT"]
[Termination "dropstoneDP won by resignation"]

1. e4 {[%clk 0:03:00.9]} 1... e5 {[%clk 0:02:59.5]} 2. Bc4 {[%clk 0:03:00.6]}
2... Nf6 {[%clk 0:02:58.9]} 3. d4 {[%clk 0:02:53.9]} 3... exd4 {[%clk
0:02:52.5]} 4. Nf3 {[%clk 0:02:54.3]} 4... Bb4+ {[%clk 0:02:40.6]} 5. Bd2 {[%clk
0:02:42.1]} 5... Bxd2+ {[%clk 0:02:39.7]} 6. Nbxd2 {[%clk 0:02:43]} 6... O-O
{[%clk 0:02:36.9]} 7. O-O {[%clk 0:02:41.7]} 7... d5 {[%clk 0:02:32.3]} 8. exd5
{[%clk 0:02:35.6]} 8... Nxd5 {[%clk 0:02:33.2]} 9. Nb3 {[%clk 0:02:29.7]} 9...
Nb6 {[%clk 0:02:31]} 10. Be2 {[%clk 0:02:26.6]} 10... Nc6 {[%clk 0:02:30.5]} 11.
Nfxd4 {[%clk 0:02:25]} 11... Nxd4 {[%clk 0:02:29.9]} 12. Nxd4 {[%clk 0:02:23.6]}
12... Qf6 {[%clk 0:02:24.7]} 13. c3 {[%clk 0:02:18]} 13... Bd7 {[%clk
0:02:21.4]} 14. Qc2 {[%clk 0:02:13.7]} 14... Rad8 {[%clk 0:02:18.8]} 15. Bd3
{[%clk 0:02:12.5]} 15... g6 {[%clk 0:02:17.8]} 16. Rfe1 {[%clk 0:02:02.3]} 16...
Rfe8 {[%clk 0:02:17.4]} 17. Be4 {[%clk 0:01:53.3]} 17... c6 {[%clk 0:02:11.6]}
18. a4 {[%clk 0:01:44.7]} 18... Nc4 {[%clk 0:02:08]} 19. a5 {[%clk 0:01:39.7]}
19... Nd6 {[%clk 0:02:05.3]} 20. Bf3 {[%clk 0:01:38.2]} 20... Rxe1+ {[%clk
0:02:02.9]} 21. Rxe1 {[%clk 0:01:37]} 21... c5 {[%clk 0:02:03.8]} 22. Ne2 {[%clk
0:01:27.6]} 22... Bf5 {[%clk 0:01:54.2]} 23. Qc1 {[%clk 0:01:03.6]} 23... Be4
{[%clk 0:01:37.3]} 24. Bxe4 {[%clk 0:00:44.2]} 24... Nxe4 {[%clk 0:01:38.2]} 25.
Qe3 {[%clk 0:00:43.1]} 25... Qf5 {[%clk 0:01:37.5]} 26. Ng3 {[%clk 0:00:39.6]}
26... Nxg3 {[%clk 0:01:37.5]} 27. hxg3 {[%clk 0:00:40.5]} 27... Kg7 {[%clk
0:01:35.1]} 28. a6 {[%clk 0:00:37.7]} 28... bxa6 {[%clk 0:01:32.5]} 29. Ra1
{[%clk 0:00:33.1]} 29... Rd6 {[%clk 0:01:30.4]} 30. b4 {[%clk 0:00:24.7]} 30...
cxb4 {[%clk 0:01:29.2]} 31. cxb4 {[%clk 0:00:25.6]} 31... Qf6 {[%clk 0:01:27.1]}
32. Rb1 {[%clk 0:00:24.2]} 32... Qd4 {[%clk 0:01:25.6]} 33. Qa3 {[%clk
0:00:21.4]} 33... Rf6 {[%clk 0:01:24.6]} 34. Qa2 {[%clk 0:00:20.6]} 34... h5
{[%clk 0:01:23.2]} 35. Qc2 {[%clk 0:00:18]} 35... Rb6 {[%clk 0:01:14]} 36. Qa4
{[%clk 0:00:12]} 36... h4 {[%clk 0:01:08.2]} 37. gxh4 {[%clk 0:00:11.7]} 37...
Qxh4 {[%clk 0:01:08.9]} 38. Qa5 {[%clk 0:00:11.3]} 38... Rf6 {[%clk 0:01:06.4]}
39. Qc5 {[%clk 0:00:09.4]} 39... Qe4 {[%clk 0:01:03.1]} 40. Rf1 {[%clk
0:00:07.8]} 40... Rb6 {[%clk 0:00:56.2]} 41. Ra1 {[%clk 0:00:02.5]} 41... Rxb4
{[%clk 0:00:53.8]} 42. g3 {[%clk 0:00:01.7]} 42... Rb1+ {[%clk 0:00:53.1]} 43.
Rxb1 {[%clk 0:00:01.7]} 43... Qxb1+ {[%clk 0:00:54]} 44. Kh2 {[%clk 0:00:02.4]}
44... Qb6 {[%clk 0:00:53.9]} 45. Qc3+ {[%clk 0:00:02.4]} 45... Qf6 {[%clk
0:00:54.1]} 46. Qc2 {[%clk 0:00:02.3]} 46... a5 {[%clk 0:00:54.3]} 47. Kg2
{[%clk 0:00:02.9]} 47... Qd4 {[%clk 0:00:53.8]} 48. Qc7 {[%clk 0:00:02.7]} 48...
a4 {[%clk 0:00:53.4]} 49. Qc6 {[%clk 0:00:01.4]} 49... a3 {[%clk 0:00:53]} 50.
Qa6 {[%clk 0:00:02.1]} 50... Qb2 {[%clk 0:00:53]} 51. Qxa7 {[%clk 0:00:02.6]}
51... a2 {[%clk 0:00:53.2]} 0-1

[Event "Early-Titled-Tuesday-Blitz-April-02-2024"]
[Site "Chess.com"]
[Date "2024.04.02"]
[Round "8"]
[White "Imagine_Drag0n"]
[Black "MKlose11"]
[Result "0-1"]
[WhiteElo "2782"]
[BlackElo "2629"]
[TimeControl "180+1"]
[EndTime "9:28:42 PDT"]
[Termination "MKlose11 won on time"]

1. e4 {[%clk 0:03:00.9]} 1... e6 {[%clk 0:02:56.3]} 2. d4 {[%clk 0:03:00.3]}
2... d5 {[%clk 0:02:55.6]} 3. Nc3 {[%clk 0:02:59.6]} 3... Bb4 {[%clk 0:02:51.4]}
4. e5 {[%clk 0:02:59.1]} 4... Ne7 {[%clk 0:02:51.1]} 5. Bd2 {[%clk 0:02:56.4]}
5... b6 {[%clk 0:02:50.7]} 6. a3 {[%clk 0:02:53.7]} 6... Bxc3 {[%clk 0:02:48.1]}
7. Bxc3 {[%clk 0:02:54.6]} 7... Ba6 {[%clk 0:02:48.2]} 8. Bxa6 {[%clk
0:02:54.2]} 8... Nxa6 {[%clk 0:02:49.1]} 9. Qe2 {[%clk 0:02:53.9]} 9... Nb8
{[%clk 0:02:48.4]} 10. h4 {[%clk 0:02:53.7]} 10... c5 {[%clk 0:02:47.7]} 11. h5
{[%clk 0:02:42.5]} 11... h6 {[%clk 0:02:47.4]} 12. Nf3 {[%clk 0:02:32.5]} 12...
Nbc6 {[%clk 0:02:46.8]} 13. g4 {[%clk 0:02:28.7]} 13... Rc8 {[%clk 0:02:45.9]}
14. O-O-O {[%clk 0:02:25.6]} 14... Qc7 {[%clk 0:02:41.4]} 15. Kb1 {[%clk
0:02:14.6]} 15... cxd4 {[%clk 0:02:32.9]} 16. Bxd4 {[%clk 0:02:11.8]} 16... Na5
{[%clk 0:02:26.7]} 17. Bc3 {[%clk 0:01:49.2]} 17... Nc4 {[%clk 0:02:23]} 18. Bb4
{[%clk 0:01:48.9]} 18... a5 {[%clk 0:02:15.5]} 19. Bxe7 {[%clk 0:01:48.5]} 19...
Qxe7 {[%clk 0:02:14.8]} 20. Nd4 {[%clk 0:01:47]} 20... Qg5 {[%clk 0:02:09.8]}
21. Rhe1 {[%clk 0:01:29.9]} 21... a4 {[%clk 0:01:42.7]} 22. Rd3 {[%clk
0:01:08.1]} 22... O-O {[%clk 0:01:36.1]} 23. c3 {[%clk 0:00:30.8]} 23... Na5
{[%clk 0:01:31.4]} 24. Ka2 {[%clk 0:00:30]} 24... Rc4 {[%clk 0:01:30.6]} 25. Qe3
{[%clk 0:00:21.3]} 25... Qxg4 {[%clk 0:01:25.5]} 26. Rdd1 {[%clk 0:00:21.4]}
26... Nb3 {[%clk 0:01:20.8]} 27. Rg1 {[%clk 0:00:19.7]} 27... Qxh5 {[%clk
0:01:19.7]} 28. Nxb3 {[%clk 0:00:19.4]} 28... axb3+ {[%clk 0:01:19.5]} 29. Kxb3
{[%clk 0:00:20.3]} 29... b5 {[%clk 0:01:11.1]} 30. Rd4 {[%clk 0:00:16.6]} 30...
Rfc8 {[%clk 0:01:09.3]} 31. Qg3 {[%clk 0:00:16.3]} 31... g6 {[%clk 0:01:04.2]}
32. Rgd1 {[%clk 0:00:09.7]} 32... Rxd4 {[%clk 0:01:02.5]} 33. Rxd4 {[%clk
0:00:10.6]} 33... Rc4 {[%clk 0:01:02.7]} 34. Qe3 {[%clk 0:00:04.1]} 34... Qh1
{[%clk 0:00:52.3]} 35. Rxc4 {[%clk 0:00:03.8]} 35... bxc4+ {[%clk 0:00:51.7]}
36. Kb4 {[%clk 0:00:04.1]} 36... Qd1 {[%clk 0:00:48.8]} 37. a4 {[%clk
0:00:03.9]} 37... Qb3+ {[%clk 0:00:48.6]} 38. Ka5 {[%clk 0:00:03.7]} 38... Qxb2
{[%clk 0:00:48.4]} 39. Ka6 {[%clk 0:00:03.4]} 39... h5 {[%clk 0:00:48.4]} 40. a5
{[%clk 0:00:03.3]} 40... h4 {[%clk 0:00:45.5]} 41. Ka7 {[%clk 0:00:02.2]} 41...
Kg7 {[%clk 0:00:42.2]} 42. a6 {[%clk 0:00:02.8]} 42... Qb5 {[%clk 0:00:38.1]}
43. Qb6 {[%clk 0:00:01.9]} 43... Qxb6+ {[%clk 0:00:35.6]} 44. Kxb6 {[%clk
0:00:02.8]} 44... h3 {[%clk 0:00:36.1]} 45. a7 {[%clk 0:00:03.5]} 45... h2
{[%clk 0:00:37]} 46. a8=Q {[%clk 0:00:04]} 46... h1=Q {[%clk 0:00:37.9]} 47. Qd8
{[%clk 0:00:04]} 47... Qf3 {[%clk 0:00:36]} 48. Kc6 {[%clk 0:00:04.2]} 48...
Qxf2 {[%clk 0:00:35.9]} 0-1

[Event "Early-Titled-Tuesday-Blitz-April-02-2024"]
[Site "Chess.com"]
[Date "2024.04.02"]
[Round "8"]
[White "MalyDominator"]
[Black "vladoboch"]
[Result "0-1"]
[WhiteElo "2615"]
[BlackElo "2542"]
[TimeControl "180+1"]
[EndTime "9:28:43 PDT"]
[Termination "vladoboch won by resignation"]

1. e4 {[%clk 0:03:00.9]} 1... e5 {[%clk 0:02:59.9]} 2. Nf3 {[%clk 0:02:59.4]}
2... Nc6 {[%clk 0:03:00.3]} 3. Bb5 {[%clk 0:02:59.4]} 3... a6 {[%clk 0:02:59.3]}
4. Ba4 {[%clk 0:02:59.8]} 4... Nf6 {[%clk 0:02:59.2]} 5. O-O {[%clk 0:03:00.5]}
5... b5 {[%clk 0:02:59.2]} 6. Bb3 {[%clk 0:02:59.6]} 6... Bc5 {[%clk 0:03:00]}
7. a4 {[%clk 0:03:00]} 7... Rb8 {[%clk 0:02:59.4]} 8. c3 {[%clk 0:03:00.5]} 8...
d6 {[%clk 0:02:59.2]} 9. d4 {[%clk 0:02:57.8]} 9... Bb6 {[%clk 0:02:59]} 10. Qd3
{[%clk 0:02:53.8]} 10... O-O {[%clk 0:02:48.7]} 11. Bg5 {[%clk 0:02:53.5]} 11...
h6 {[%clk 0:02:46.4]} 12. Bh4 {[%clk 0:02:34.4]} 12... exd4 {[%clk 0:02:11.1]}
13. cxd4 {[%clk 0:02:22.4]} 13... g5 {[%clk 0:01:50.7]} 14. Bg3 {[%clk
0:02:05.2]} 14... Nb4 {[%clk 0:01:37.2]} 15. Qd2 {[%clk 0:01:49.7]} 15... c5
{[%clk 0:01:20]} 16. dxc5 {[%clk 0:01:25]} 16... Bxc5 {[%clk 0:01:19.7]} 17. e5
{[%clk 0:01:18.3]} 17... Ne4 {[%clk 0:01:13.7]} 18. Qc1 {[%clk 0:01:02.5]} 18...
Nxg3 {[%clk 0:01:09.5]} 19. hxg3 {[%clk 0:01:03.4]} 19... Bf5 {[%clk 0:01:04.5]}
20. exd6 {[%clk 0:00:59.6]} 20... Rc8 {[%clk 0:00:57.9]} 21. Nc3 {[%clk
0:00:58.8]} 21... Qxd6 {[%clk 0:00:55.7]} 22. Rd1 {[%clk 0:00:57.4]} 22... Qxg3
{[%clk 0:00:55.6]} 23. Nd4 {[%clk 0:00:50.7]} 23... Nd3 {[%clk 0:00:35.6]} 24.
fxg3 {[%clk 0:00:08.5]} 24... Bxd4+ {[%clk 0:00:35.6]} 25. Kh2 {[%clk
0:00:08.5]} 25... Nxc1 {[%clk 0:00:35.3]} 26. Raxc1 {[%clk 0:00:08.7]} 26... Bg7
{[%clk 0:00:23.7]} 27. Nd5 {[%clk 0:00:08.4]} 27... Rxc1 {[%clk 0:00:21.1]} 28.
Rxc1 {[%clk 0:00:09]} 28... Kh8 {[%clk 0:00:13.6]} 29. axb5 {[%clk 0:00:07.7]}
29... axb5 {[%clk 0:00:13.8]} 30. Rc7 {[%clk 0:00:06.1]} 30... Be6 {[%clk
0:00:13.7]} 31. Rb7 {[%clk 0:00:05.6]} 31... Bxb2 {[%clk 0:00:10.5]} 32. Rxb5
{[%clk 0:00:06.2]} 32... Bd4 {[%clk 0:00:07.9]} 33. Bc2 {[%clk 0:00:03.4]} 33...
Rc8 {[%clk 0:00:07.7]} 34. Be4 {[%clk 0:00:03.4]} 34... Rc1 {[%clk 0:00:07.3]}
35. Ne7 {[%clk 0:00:03.3]} 35... Bg1+ {[%clk 0:00:06.7]} 36. Kh1 {[%clk
0:00:03.9]} 36... Bc5+ {[%clk 0:00:07.1]} 37. Kh2 {[%clk 0:00:03.7]} 37... Bxe7
{[%clk 0:00:07.8]} 0-1

[Event "Early-Titled-Tuesday-Blitz-April-02-2024"]
[Site "Chess.com"]
[Date "2024.04.02"]
[Round "8"]
[White "Yaacovn"]
[Black "Rashad_Zeynalli"]
[Result "1-0"]
[WhiteElo "2862"]
[BlackElo "2697"]
[TimeControl "180+1"]
[EndTime "9:28:44 PDT"]
[Termination "Yaacovn won by resignation"]

1. d4 {[%clk 0:03:00]} 1... d5 {[%clk 0:02:59.4]} 2. e3 {[%clk 0:02:59.4]} 2...
Nf6 {[%clk 0:02:56.9]} 3. Bd3 {[%clk 0:02:59.3]} 3... c5 {[%clk 0:02:57.3]} 4.
c3 {[%clk 0:02:59.2]} 4... Nc6 {[%clk 0:02:57.1]} 5. f4 {[%clk 0:02:59.3]} 5...
Bg4 {[%clk 0:02:57.5]} 6. Nf3 {[%clk 0:02:58.6]} 6... e6 {[%clk 0:02:58]} 7. O-O
{[%clk 0:02:58.8]} 7... Bd6 {[%clk 0:02:58.2]} 8. Qe1 {[%clk 0:02:58.9]} 8...
Bf5 {[%clk 0:02:57.4]} 9. Qe2 {[%clk 0:02:59]} 9... O-O {[%clk 0:02:54.8]} 10.
Ne5 {[%clk 0:02:58]} 10... Qc7 {[%clk 0:02:44.8]} 11. Nd2 {[%clk 0:02:57.6]}
11... c4 {[%clk 0:02:41.7]} 12. Bb1 {[%clk 0:02:57.3]} 12... b5 {[%clk
0:02:34.9]} 13. e4 {[%clk 0:02:57.2]} 13... dxe4 {[%clk 0:02:30.7]} 14. Nxe4
{[%clk 0:02:58.1]} 14... Nxe4 {[%clk 0:02:18.9]} 15. Bxe4 {[%clk 0:02:59]} 15...
Bxe5 {[%clk 0:02:10.5]} 16. fxe5 {[%clk 0:02:57.8]} 16... Bxe4 {[%clk
0:02:02.2]} 17. Qxe4 {[%clk 0:02:57.5]} 17... Ne7 {[%clk 0:02:02.5]} 18. Bg5
{[%clk 0:02:50.8]} 18... Rab8 {[%clk 0:01:57.3]} 19. Rf3 {[%clk 0:02:49.5]}
19... b4 {[%clk 0:01:54.3]} 20. Raf1 {[%clk 0:02:45.1]} 20... bxc3 {[%clk
0:01:51.1]} 21. bxc3 {[%clk 0:02:44.6]} 21... Rb2 {[%clk 0:01:45.2]} 22. Rh3
{[%clk 0:02:10.5]} 22... Ng6 {[%clk 0:01:39.2]} 23. Qg4 {[%clk 0:02:04.1]} 23...
Qc6 {[%clk 0:01:31.1]} 24. Rhf3 {[%clk 0:02:04.1]} 24... Rxa2 {[%clk 0:01:26.9]}
25. h4 {[%clk 0:02:04]} 25... h5 {[%clk 0:01:17.8]} 26. Qxh5 {[%clk 0:02:02.9]}
26... Qe4 {[%clk 0:01:18.3]} 27. Bf6 {[%clk 0:01:45.4]} 27... gxf6 {[%clk
0:01:07.4]} 28. Rg3 {[%clk 0:01:39]} 28... Rb8 {[%clk 0:00:45]} 29. Rg4 {[%clk
0:01:26.5]} 29... Rbb2 {[%clk 0:00:38.2]} 30. Rf2 {[%clk 0:01:06.7]} 30... Qe1+
{[%clk 0:00:19.8]} 31. Rf1 {[%clk 0:01:06.7]} 31... Qe3+ {[%clk 0:00:19.7]} 32.
Kh1 {[%clk 0:01:05.5]} 32... Qd3 {[%clk 0:00:17.5]} 33. Rf3 {[%clk 0:00:53.7]}
33... Qxf3 {[%clk 0:00:13.7]} 34. Rxg6+ {[%clk 0:00:53.3]} 34... fxg6 {[%clk
0:00:13]} 35. Qxf3 {[%clk 0:00:53.8]} 35... Rxg2 {[%clk 0:00:11.8]} 36. Qxf6
{[%clk 0:00:43.1]} 36... Rh2+ {[%clk 0:00:11.7]} 37. Kg1 {[%clk 0:00:43.1]}
37... Rag2+ {[%clk 0:00:11.8]} 38. Kf1 {[%clk 0:00:43.5]} 38... Rf2+ {[%clk
0:00:12.4]} 39. Qxf2 {[%clk 0:00:43.8]} 39... Rxf2+ {[%clk 0:00:12.3]} 40. Kxf2
{[%clk 0:00:44.7]} 40... a5 {[%clk 0:00:11.9]} 41. Ke2 {[%clk 0:00:45]} 41...
Kg7 {[%clk 0:00:11.7]} 42. Kd1 {[%clk 0:00:45.3]} 42... Kh6 {[%clk 0:00:11.9]}
43. Kc2 {[%clk 0:00:43.8]} 43... g5 {[%clk 0:00:07.9]} 44. hxg5+ {[%clk
0:00:43.8]} 44... Kxg5 {[%clk 0:00:08.8]} 45. Kb2 {[%clk 0:00:44.3]} 45... Kf5
{[%clk 0:00:09.3]} 46. Ka3 {[%clk 0:00:44.3]} 46... Ke4 {[%clk 0:00:09.7]} 47.
Ka4 {[%clk 0:00:44.2]} 47... Kd3 {[%clk 0:00:09.3]} 48. d5 {[%clk 0:00:44.4]}
48... exd5 {[%clk 0:00:09.7]} 49. e6 {[%clk 0:00:44.6]} 49... d4 {[%clk
0:00:10.6]} 50. e7 {[%clk 0:00:43.9]} 50... dxc3 {[%clk 0:00:10.5]} 51. e8=Q
{[%clk 0:00:44.4]} 51... c2 {[%clk 0:00:11.2]} 52. Qe1 {[%clk 0:00:44.4]} 52...
c3 {[%clk 0:00:11.1]} 53. Qc1 {[%clk 0:00:44.6]} 53... Kc4 {[%clk 0:00:10.9]}
54. Qxc2 {[%clk 0:00:44.6]} 1-0

[Event "Early-Titled-Tuesday-Blitz-April-02-2024"]
[Site "Chess.com"]
[Date "2024.04.02"]
[Round "8"]
[White "javirec"]
[Black "Rosh1610"]
[Result "0-1"]
[WhiteElo "2270"]
[BlackElo "2446"]
[TimeControl "180+1"]
[EndTime "9:28:45 PDT"]
[Termination "Rosh1610 won on time"]

1. e4 {[%clk 0:03:00.9]} 1... e5 {[%clk 0:02:59.1]} 2. Nf3 {[%clk 0:03:00.7]}
2... Nc6 {[%clk 0:02:59]} 3. Bb5 {[%clk 0:03:01.3]} 3... a6 {[%clk 0:02:58.4]}
4. Ba4 {[%clk 0:03:01.3]} 4... Nf6 {[%clk 0:02:58.3]} 5. O-O {[%clk 0:02:58.5]}
5... Nxe4 {[%clk 0:02:58.8]} 6. Re1 {[%clk 0:02:58.1]} 6... Nc5 {[%clk
0:02:55.2]} 7. Bxc6 {[%clk 0:02:43.4]} 7... dxc6 {[%clk 0:02:54]} 8. Nxe5 {[%clk
0:02:43.4]} 8... Be7 {[%clk 0:02:51.9]} 9. d4 {[%clk 0:02:42.7]} 9... Ne6 {[%clk
0:02:45.4]} 10. c3 {[%clk 0:02:41]} 10... O-O {[%clk 0:02:41.5]} 11. Nd2 {[%clk
0:02:21.3]} 11... Bf6 {[%clk 0:02:39.3]} 12. Ndf3 {[%clk 0:02:19.7]} 12... g6
{[%clk 0:02:39.1]} 13. Bh6 {[%clk 0:02:15.2]} 13... Ng7 {[%clk 0:02:37.3]} 14.
Nd2 {[%clk 0:01:57.7]} 14... Re8 {[%clk 0:02:18.8]} 15. Ne4 {[%clk 0:01:38.2]}
15... Be6 {[%clk 0:01:50.1]} 16. Nxf6+ {[%clk 0:01:32.1]} 16... Qxf6 {[%clk
0:01:51]} 17. Qd2 {[%clk 0:01:20.5]} 17... Nf5 {[%clk 0:01:44.6]} 18. Bg5 {[%clk
0:01:13.9]} 18... Qg7 {[%clk 0:01:43.7]} 19. Ng4 {[%clk 0:01:07.1]} 19... Kf8
{[%clk 0:01:33.5]} 20. Re5 {[%clk 0:00:58.3]} 20... h5 {[%clk 0:01:13.5]} 21.
Rxf5 {[%clk 0:00:52.6]} 21... Bxf5 {[%clk 0:01:12.7]} 22. Bh6 {[%clk 0:00:45.5]}
22... Bxg4 {[%clk 0:01:12]} 23. Bxg7+ {[%clk 0:00:45.2]} 23... Kxg7 {[%clk
0:01:12.9]} 24. f3 {[%clk 0:00:44.8]} 24... Bf5 {[%clk 0:01:12.5]} 25. Kf2
{[%clk 0:00:44.4]} 25... Re7 {[%clk 0:01:11.2]} 26. Re1 {[%clk 0:00:39.9]} 26...
Rae8 {[%clk 0:01:10.9]} 27. Rxe7 {[%clk 0:00:39.8]} 27... Rxe7 {[%clk
0:01:11.8]} 28. h3 {[%clk 0:00:32.8]} 28... f6 {[%clk 0:01:12]} 29. g4 {[%clk
0:00:32.7]} 29... hxg4 {[%clk 0:01:11.2]} 30. hxg4 {[%clk 0:00:33.6]} 30... Be6
{[%clk 0:01:10.9]} 31. b3 {[%clk 0:00:33.8]} 31... g5 {[%clk 0:01:11.1]} 32. f4
{[%clk 0:00:27.1]} 32... Bxg4 {[%clk 0:01:09.6]} 33. Kg3 {[%clk 0:00:18.5]}
33... Re2 {[%clk 0:00:58.1]} 34. Qd3 {[%clk 0:00:17.3]} 34... f5 {[%clk
0:00:56.4]} 35. fxg5 {[%clk 0:00:14.8]} 35... Kg6 {[%clk 0:00:56.6]} 36. Kf4
{[%clk 0:00:07]} 36... Rf2+ {[%clk 0:00:47.4]} 37. Ke5 {[%clk 0:00:06.2]} 37...
Re2+ {[%clk 0:00:47.3]} 38. Kf4 {[%clk 0:00:04.5]} 38... Kh5 {[%clk 0:00:43.4]}
39. d5 {[%clk 0:00:03.1]} 39... Re4+ {[%clk 0:00:36.7]} 40. Kg3 {[%clk
0:00:02.3]} 40... f4+ {[%clk 0:00:30.7]} 0-1

[Event "Early-Titled-Tuesday-Blitz-April-02-2024"]
[Site "Chess.com"]
[Date "2024.04.02"]
[Round "8"]
[White "abelmat"]
[Black "Knightmare1014"]
[Result "1-0"]
[WhiteElo "2131"]
[BlackElo "2296"]
[TimeControl "180+1"]
[EndTime "9:28:45 PDT"]
[Termination "abelmat won on time"]

1. d4 {[%clk 0:03:00.9]} 1... d5 {[%clk 0:02:58.7]} 2. c4 {[%clk 0:03:00.8]}
2... e6 {[%clk 0:02:59]} 3. Nf3 {[%clk 0:03:01.3]} 3... Nf6 {[%clk 0:02:58.4]}
4. Nc3 {[%clk 0:03:01.8]} 4... Be7 {[%clk 0:02:56.9]} 5. Bf4 {[%clk 0:03:01.5]}
5... O-O {[%clk 0:02:54.7]} 6. e3 {[%clk 0:03:01.9]} 6... b6 {[%clk 0:02:55.1]}
7. cxd5 {[%clk 0:02:59.4]} 7... Nxd5 {[%clk 0:02:54.8]} 8. Nxd5 {[%clk 0:02:58]}
8... Qxd5 {[%clk 0:02:54.9]} 9. a3 {[%clk 0:02:54.6]} 9... c5 {[%clk 0:02:48.2]}
10. Bd3 {[%clk 0:02:52.2]} 10... Ba6 {[%clk 0:02:40.3]} 11. Bxa6 {[%clk
0:02:44.9]} 11... Nxa6 {[%clk 0:02:40.5]} 12. O-O {[%clk 0:02:43.5]} 12... cxd4
{[%clk 0:02:28.4]} 13. exd4 {[%clk 0:02:42.7]} 13... Rad8 {[%clk 0:02:24]} 14.
Qe2 {[%clk 0:02:40.7]} 14... Nb8 {[%clk 0:02:22.3]} 15. Rfd1 {[%clk 0:02:28.3]}
15... Bf6 {[%clk 0:02:14.2]} 16. Be5 {[%clk 0:02:21.2]} 16... Nd7 {[%clk
0:02:07.6]} 17. h3 {[%clk 0:02:16.5]} 17... Be7 {[%clk 0:01:51.7]} 18. Rac1
{[%clk 0:02:13.9]} 18... Nf6 {[%clk 0:01:42.9]} 19. Rc7 {[%clk 0:02:06.3]} 19...
Rd7 {[%clk 0:01:42.7]} 20. Rdc1 {[%clk 0:01:55.5]} 20... h6 {[%clk 0:01:10.7]}
21. Qa6 {[%clk 0:01:47.4]} 21... Bd8 {[%clk 0:00:42.2]} 22. Rxa7 {[%clk
0:01:37.3]} 22... Rxa7 {[%clk 0:00:40.3]} 23. Qxa7 {[%clk 0:01:37.3]} 23... Qb3
{[%clk 0:00:40]} 24. Rc8 {[%clk 0:01:21.8]} 24... Ne4 {[%clk 0:00:27.4]} 25. Qd7
{[%clk 0:00:50.5]} 25... Qd1+ {[%clk 0:00:20]} 26. Kh2 {[%clk 0:00:43.2]} 26...
Nxf2 {[%clk 0:00:13.5]} 27. Kg3 {[%clk 0:00:31.2]} 27... Ne4+ {[%clk 0:00:12.5]}
28. Kf4 {[%clk 0:00:26.3]} 28... Bg5+ {[%clk 0:00:11.4]} 29. Kg4 {[%clk
0:00:18.7]} 29... Nf2+ {[%clk 0:00:05.6]} 30. Kg3 {[%clk 0:00:16]} 30... Ne4+
{[%clk 0:00:03.5]} 31. Kg4 {[%clk 0:00:16.1]} 31... f5+ {[%clk 0:00:02.2]} 32.
Kh5 {[%clk 0:00:15.2]} 32... Nf6+ {[%clk 0:00:01.9]} 33. Bxf6 {[%clk 0:00:15.2]}
1-0